[Event "Titled Tuesday Blitz June 29 2021"]
[White "Reality-Stone"]
[Black "Iskusnyh"]
[WhiteElo "2511"]
[BlackElo "2646"]
[Result "1/2-1/2"]
[Round "11"]
[TimeControl "180+1"]
[Date "2021.06.29"]
[WhiteClock "0:00:26"]
[BlackClock "0:00:15"]

1. d4 {[%clk 0:03:00]}  d5 {[%clk 0:02:59]} 2. c4 {[%clk 0:03:00]}  e6 {[%clk 0:02:59]} 3. Nf3 {[%clk 0:03:00]}  dxc4 {[%clk 0:02:59]} 4. e3 {[%clk 0:02:57]}  Nf6 {[%clk 0:02:56]} 5. Bxc4 {[%clk 0:02:57]}  a6 {[%clk 0:02:56]} 6. O-O {[%clk 0:02:51]}  b5 {[%clk 0:02:57]} 7. Bd3 {[%clk 0:02:50]}  Bb7 {[%clk 0:02:56]} 8. Qe2 {[%clk 0:02:41]}  c5 {[%clk 0:02:50]} 9. dxc5 {[%clk 0:02:34]}  Bxc5 {[%clk 0:02:48]} 10. Bxb5+ {[%clk 0:02:34]}  Nbd7 {[%clk 0:02:37]} 11. Bd3 {[%clk 0:02:31]}  O-O {[%clk 0:02:35]} 12. e4 {[%clk 0:02:31]}  Qc7 {[%clk 0:02:25]} 13. Nc3 {[%clk 0:02:30]}  Ng4 {[%clk 0:02:16]} 14. h3 {[%clk 0:02:29]}  Nge5 {[%clk 0:02:12]} 15. Bf4 {[%clk 0:02:28]}  Nxf3+ {[%clk 0:02:07]} 16. Qxf3 {[%clk 0:02:29]}  Qa5 {[%clk 0:01:42]} 17. a3 {[%clk 0:02:23]}  Bd4 {[%clk 0:01:40]} 18. b4 {[%clk 0:02:20]}  Qd8 {[%clk 0:01:32]} 19. Rac1 {[%clk 0:02:19]}  Ne5 {[%clk 0:01:30]} 20. Bxe5 {[%clk 0:02:19]}  Bxe5 {[%clk 0:01:30]} 21. Rfd1 {[%clk 0:02:18]}  Qg5 {[%clk 0:01:26]} 22. Na4 {[%clk 0:02:13]}  f5 {[%clk 0:01:11]} 23. Nc5 {[%clk 0:01:56]}  fxe4 {[%clk 0:01:07]} 24. Nxe4 {[%clk 0:01:56]}  Qxc1 {[%clk 0:00:30]} 25. Qxf8+ {[%clk 0:01:41]}  Rxf8 {[%clk 0:00:28]} 26. Rxc1 {[%clk 0:01:41]}  Bd4 {[%clk 0:00:22]} 27. Rc2 {[%clk 0:01:38]}  Bxe4 {[%clk 0:00:14]} 28. Bxe4 {[%clk 0:01:37]}  Rd8 {[%clk 0:00:10]} 29. Kf1 {[%clk 0:01:30]}  Rd6 {[%clk 0:00:09]} 30. Ke2 {[%clk 0:01:29]}  Kf7 {[%clk 0:00:09]} 31. a4 {[%clk 0:01:27]}  Kf6 {[%clk 0:00:09]} 32. a5 {[%clk 0:01:24]}  h6 {[%clk 0:00:08]} 33. f3 {[%clk 0:01:23]}  Ke5 {[%clk 0:00:08]} 34. g3 {[%clk 0:01:17]}  Kf6 {[%clk 0:00:07]} 35. Rc6 {[%clk 0:00:47]}  Rxc6 {[%clk 0:00:06]} 36. Bxc6 {[%clk 0:00:48]}  Bc3 {[%clk 0:00:07]} 37. b5 {[%clk 0:00:48]}  axb5 {[%clk 0:00:07]} 38. a6 {[%clk 0:00:48]}  Bd4 {[%clk 0:00:07]} 39. Kd3 {[%clk 0:00:47]}  Bf2 {[%clk 0:00:06]} 40. Bxb5 {[%clk 0:00:47]}  Ke7 {[%clk 0:00:06]} 41. Ke4 {[%clk 0:00:44]}  Kd6 {[%clk 0:00:06]} 42. g4 {[%clk 0:00:39]}  g5 {[%clk 0:00:06]} 43. Bc4 {[%clk 0:00:38]}  Bg1 {[%clk 0:00:06]} 44. Be2 {[%clk 0:00:31]}  Bf2 {[%clk 0:00:05]} 45. Kd3 {[%clk 0:00:31]}  Bg1 {[%clk 0:00:01]} 46. Kc4 {[%clk 0:00:30]}  Bf2 {[%clk 0:00:02]} 47. Bd3 {[%clk 0:00:28]}  Bg1 {[%clk 0:00:02]} 48. Bg6 {[%clk 0:00:22]}  Ba7 {[%clk 0:00:03]} 49. Bf7 {[%clk 0:00:22]}  Bb8 {[%clk 0:00:03]} 50. Kd4 {[%clk 0:00:19]}  Ba7+ {[%clk 0:00:04]} 51. Ke4 {[%clk 0:00:20]}  Bb6 {[%clk 0:00:04]} 52. f4 {[%clk 0:00:20]}  gxf4 {[%clk 0:00:04]} 53. Kxf4 {[%clk 0:00:20]}  Ke7 {[%clk 0:00:05]} 54. Bg8 {[%clk 0:00:20]}  Kf6 {[%clk 0:00:05]} 55. h4 {[%clk 0:00:19]}  Ba7 {[%clk 0:00:05]} 56. Bh7 {[%clk 0:00:18]}  e5+ {[%clk 0:00:04]} 57. Ke4 {[%clk 0:00:17]}  Bb6 {[%clk 0:00:04]} 58. Bf5 {[%clk 0:00:17]}  Bd4 {[%clk 0:00:03]} 59. Kd5 {[%clk 0:00:17]}  h5 {[%clk 0:00:04]} 60. Ke4 {[%clk 0:00:14]}  hxg4 {[%clk 0:00:04]} 61. Bxg4 {[%clk 0:00:15]}  Kg7 {[%clk 0:00:04]} 62. Bf3 {[%clk 0:00:11]}  Ba7 {[%clk 0:00:04]} 63. Kxe5 {[%clk 0:00:11]}  Kh8 {[%clk 0:00:04]} 64. Kd6 {[%clk 0:00:11]}  Bb6 {[%clk 0:00:05]} 65. Kc6 {[%clk 0:00:11]}  Ba7 {[%clk 0:00:06]} 66. Kb7 {[%clk 0:00:11]}  Bd4 {[%clk 0:00:06]} 67. Be2 {[%clk 0:00:11]}  Be3 {[%clk 0:00:06]} 68. Bd3 {[%clk 0:00:11]}  Bd4 {[%clk 0:00:07]} 69. h5 {[%clk 0:00:12]}  Bc5 {[%clk 0:00:07]} 70. h6 {[%clk 0:00:12]}  Bd4 {[%clk 0:00:08]} 71. Be4 {[%clk 0:00:12]}  Bc5 {[%clk 0:00:08]} 72. a7 {[%clk 0:00:12]}  Bxa7 {[%clk 0:00:08]} 73. Kxa7 {[%clk 0:00:13]}  Kg8 {[%clk 0:00:09]} 74. Kb7 {[%clk 0:00:14]}  Kh8 {[%clk 0:00:09]} 75. Kc7 {[%clk 0:00:14]}  Kg8 {[%clk 0:00:10]} 76. Kd7 {[%clk 0:00:15]}  Kh8 {[%clk 0:00:10]} 77. Ke6 {[%clk 0:00:16]}  Kg8 {[%clk 0:00:11]} 78. Kf6 {[%clk 0:00:17]}  Kh8 {[%clk 0:00:12]} 79. Kg6 {[%clk 0:00:18]}  Kg8 {[%clk 0:00:12]} 80. Bd5+ {[%clk 0:00:19]}  Kh8 {[%clk 0:00:13]} 81. Bc6 {[%clk 0:00:20]}  Kg8 {[%clk 0:00:13]} 82. Bd7 {[%clk 0:00:21]}  Kh8 {[%clk 0:00:13]} 83. Bf5 {[%clk 0:00:21]}  Kg8 {[%clk 0:00:14]} 84. Kg5 {[%clk 0:00:22]}  Kh8 {[%clk 0:00:14]} 85. Bh7 {[%clk 0:00:22]}  Kxh7 {[%clk 0:00:14]} 86. Kh5 {[%clk 0:00:23]}  Kh8 {[%clk 0:00:14]} 87. Kg6 {[%clk 0:00:24]}  Kg8 {[%clk 0:00:15]} 88. h7+ {[%clk 0:00:25]}  Kh8 {[%clk 0:00:15]} 89. Kh6 {[%clk 0:00:26]} 1/2-1/2


[Site "https://www.chess.com"]

[Event "Titled Tuesday Blitz June 29 2021"]
[White "SaraBlackPanther"]
[Black "Murad_Ibrahimli"]
[WhiteElo "2705"]
[BlackElo "2826"]
[Result "0-1"]
[Round "11"]
[TimeControl "180+1"]
[Date "2021.06.29"]
[WhiteClock "0:00:01"]
[BlackClock "0:00:14"]

1. d4 {[%clk 0:03:00]}  d5 {[%clk 0:02:54]} 2. c4 {[%clk 0:03:01]}  c6 {[%clk 0:02:53]} 3. Nf3 {[%clk 0:03:01]}  Nf6 {[%clk 0:02:53]} 4. e3 {[%clk 0:03:01]}  e6 {[%clk 0:02:53]} 5. Bd3 {[%clk 0:02:58]}  Nbd7 {[%clk 0:02:53]} 6. O-O {[%clk 0:02:57]}  Bd6 {[%clk 0:02:52]} 7. Nbd2 {[%clk 0:02:57]}  O-O {[%clk 0:02:51]} 8. e4 {[%clk 0:02:56]}  dxe4 {[%clk 0:02:50]} 9. Nxe4 {[%clk 0:02:56]}  Nxe4 {[%clk 0:02:51]} 10. Bxe4 {[%clk 0:02:57]}  Nf6 {[%clk 0:02:51]} 11. Bc2 {[%clk 0:02:57]}  c5 {[%clk 0:02:50]} 12. Bg5 {[%clk 0:02:56]}  h6 {[%clk 0:02:49]} 13. Bh4 {[%clk 0:02:53]}  b6 {[%clk 0:02:48]} 14. Qd3 {[%clk 0:02:49]}  Re8 {[%clk 0:02:34]} 15. Rad1 {[%clk 0:02:37]}  g5 {[%clk 0:02:26]} 16. Nxg5 {[%clk 0:02:24]}  hxg5 {[%clk 0:02:14]} 17. Bxg5 {[%clk 0:02:25]}  Bb7 {[%clk 0:01:31]} 18. dxc5 {[%clk 0:01:19]}  Bxh2+ {[%clk 0:01:29]} 19. Kxh2 {[%clk 0:01:19]}  Ng4+ {[%clk 0:01:29]} 20. Kg1 {[%clk 0:01:20]}  Qxg5 {[%clk 0:01:29]} 21. Qh7+ {[%clk 0:01:20]}  Kf8 {[%clk 0:01:28]} 22. Rd7 {[%clk 0:01:20]}  Qg7 {[%clk 0:01:18]} 23. Qxg7+ {[%clk 0:01:19]}  Kxg7 {[%clk 0:01:19]} 24. Rxb7 {[%clk 0:01:18]}  bxc5 {[%clk 0:01:19]} 25. Rd1 {[%clk 0:01:14]}  Ne5 {[%clk 0:01:14]} 26. b3 {[%clk 0:01:01]}  Reb8 {[%clk 0:01:11]} 27. Rxb8 {[%clk 0:00:50]}  Rxb8 {[%clk 0:01:09]} 28. f4 {[%clk 0:00:51]}  Ng4 {[%clk 0:00:53]} 29. Rd7 {[%clk 0:00:47]}  a5 {[%clk 0:00:52]} 30. Be4 {[%clk 0:00:33]}  Nf6 {[%clk 0:00:46]} 31. Ra7 {[%clk 0:00:31]}  Nxe4 {[%clk 0:00:46]} 32. Rxa5 {[%clk 0:00:31]}  Rd8 {[%clk 0:00:46]} 33. Rb5 {[%clk 0:00:25]}  Rd1+ {[%clk 0:00:46]} 34. Kh2 {[%clk 0:00:25]}  f5 {[%clk 0:00:46]} 35. a4 {[%clk 0:00:23]}  Nf2 {[%clk 0:00:40]} 36. Rxc5 {[%clk 0:00:18]}  Ng4+ {[%clk 0:00:40]} 37. Kg3 {[%clk 0:00:16]}  Rd3+ {[%clk 0:00:36]} 38. Kh4 {[%clk 0:00:16]}  Kf6 {[%clk 0:00:36]} 39. b4 {[%clk 0:00:14]}  Ne3 {[%clk 0:00:36]} 40. g3 {[%clk 0:00:10]}  Rd1 {[%clk 0:00:36]} 41. g4 {[%clk 0:00:07]}  Nxg4 {[%clk 0:00:34]} 42. Kg3 {[%clk 0:00:06]}  Rd3+ {[%clk 0:00:33]} 43. Kg2 {[%clk 0:00:06]}  Ra3 {[%clk 0:00:28]} 44. a5 {[%clk 0:00:06]}  e5 {[%clk 0:00:26]} 45. Rc6+ {[%clk 0:00:06]}  Kf7 {[%clk 0:00:25]} 46. fxe5 {[%clk 0:00:06]}  Nxe5 {[%clk 0:00:26]} 47. Rc5 {[%clk 0:00:05]}  Kf6 {[%clk 0:00:27]} 48. Rc8 {[%clk 0:00:04]}  f4 {[%clk 0:00:26]} 49. c5 {[%clk 0:00:03]}  Ra2+ {[%clk 0:00:26]} 50. Kf1 {[%clk 0:00:03]}  Kf5 {[%clk 0:00:25]} 51. c6 {[%clk 0:00:02]}  Ke4 {[%clk 0:00:24]} 52. Re8 {[%clk 0:00:01]}  Rc2 {[%clk 0:00:14]} 0-1


[Site "https://www.chess.com"]

[Event "Titled Tuesday Blitz June 29 2021"]
[White "ShapkinAnatoliy"]
[Black "BigAl"]
[WhiteElo "2707"]
[BlackElo "2614"]
[Result "1-0"]
[Round "11"]
[TimeControl "180+1"]
[Date "2021.06.29"]
[WhiteClock "0:00:12"]
[BlackClock "0:00:10"]

1. d4 {[%clk 0:03:00]}  Nf6 {[%clk 0:02:59]} 2. c4 {[%clk 0:03:00]}  g6 {[%clk 0:02:59]} 3. Nc3 {[%clk 0:03:00]}  Bg7 {[%clk 0:03:00]} 4. e4 {[%clk 0:03:00]}  O-O {[%clk 0:03:01]} 5. Nf3 {[%clk 0:03:01]}  d6 {[%clk 0:03:01]} 6. Be2 {[%clk 0:03:01]}  Bg4 {[%clk 0:03:02]} 7. Be3 {[%clk 0:03:00]}  Nbd7 {[%clk 0:03:02]} 8. O-O {[%clk 0:02:59]}  e5 {[%clk 0:03:03]} 9. d5 {[%clk 0:02:59]}  a5 {[%clk 0:03:03]} 10. Nd2 {[%clk 0:02:59]}  Bxe2 {[%clk 0:03:03]} 11. Qxe2 {[%clk 0:03:00]}  Nh5 {[%clk 0:03:02]} 12. g3 {[%clk 0:02:57]}  b6 {[%clk 0:03:03]} 13. b3 {[%clk 0:02:55]}  Qe8 {[%clk 0:03:02]} 14. Nb5 {[%clk 0:02:50]}  Rc8 {[%clk 0:03:02]} 15. Rae1 {[%clk 0:02:41]}  f5 {[%clk 0:02:58]} 16. exf5 {[%clk 0:02:41]}  gxf5 {[%clk 0:02:58]} 17. f4 {[%clk 0:02:41]}  Qg6 {[%clk 0:02:50]} 18. Nf3 {[%clk 0:02:32]}  Bf6 {[%clk 0:02:25]} 19. Kh1 {[%clk 0:02:14]}  Kh8 {[%clk 0:02:23]} 20. fxe5 {[%clk 0:01:51]}  dxe5 {[%clk 0:02:23]} 21. Bc1 {[%clk 0:01:51]}  Rg8 {[%clk 0:02:04]} 22. Bb2 {[%clk 0:01:50]}  Qh6 {[%clk 0:02:03]} 23. Nh4 {[%clk 0:01:25]}  f4 {[%clk 0:01:07]} 24. Nf5 {[%clk 0:00:44]}  Qg5 {[%clk 0:01:07]} 25. g4 {[%clk 0:00:43]}  Qxg4 {[%clk 0:00:55]} 26. Qxg4 {[%clk 0:00:44]}  Rxg4 {[%clk 0:00:56]} 27. Nh6 {[%clk 0:00:34]}  Rg6 {[%clk 0:00:43]} 28. Nf7+ {[%clk 0:00:33]}  Kg7 {[%clk 0:00:44]} 29. Nxe5 {[%clk 0:00:33]}  Rh6 {[%clk 0:00:25]} 30. Kg2 {[%clk 0:00:31]}  Nxe5 {[%clk 0:00:23]} 31. Bxe5 {[%clk 0:00:30]}  Rg8 {[%clk 0:00:24]} 32. Kf3 {[%clk 0:00:26]}  Kf7 {[%clk 0:00:23]} 33. Nxc7 {[%clk 0:00:22]}  Ng7 {[%clk 0:00:19]} 34. Bxf4 {[%clk 0:00:20]}  Rh3+ {[%clk 0:00:18]} 35. Bg3 {[%clk 0:00:20]}  Nf5 {[%clk 0:00:18]} 36. Kg2 {[%clk 0:00:18]}  Nxg3 {[%clk 0:00:18]} 37. Kxh3 {[%clk 0:00:17]}  Nxf1 {[%clk 0:00:18]} 38. Rxf1 {[%clk 0:00:18]}  Ke7 {[%clk 0:00:16]} 39. Ne6 {[%clk 0:00:18]}  Be5 {[%clk 0:00:15]} 40. Re1 {[%clk 0:00:13]}  Kd6 {[%clk 0:00:16]} 41. Re2 {[%clk 0:00:14]}  Rg1 {[%clk 0:00:14]} 42. Kh4 {[%clk 0:00:12]}  Rg8 {[%clk 0:00:13]} 43. Kh5 {[%clk 0:00:12]}  Rg6 {[%clk 0:00:13]} 44. Ng5 {[%clk 0:00:12]}  Bf4 {[%clk 0:00:11]} 45. h4 {[%clk 0:00:11]}  Kc5 {[%clk 0:00:11]} 46. Ne6+ {[%clk 0:00:11]}  Kb4 {[%clk 0:00:10]} 47. Nxf4 {[%clk 0:00:11]}  Rg1 {[%clk 0:00:10]} 48. d6 {[%clk 0:00:11]}  Rd1 {[%clk 0:00:10]} 49. Nd5+ {[%clk 0:00:12]}  Ka3 {[%clk 0:00:10]} 50. d7 {[%clk 0:00:12]} 1-0


[Site "https://www.chess.com"]

[Event "Titled Tuesday Blitz June 29 2021"]
[White "Shuvalov"]
[Black "TrahtarBelarus"]
[WhiteElo "2476"]
[BlackElo "2641"]
[Result "0-1"]
[Round "11"]
[TimeControl "180+1"]
[Date "2021.06.29"]
[WhiteClock "0:00:11"]
[BlackClock "0:00:12"]

1. Nf3 {[%clk 0:03:00]}  Nf6 {[%clk 0:02:57]} 2. c4 {[%clk 0:03:00]}  g6 {[%clk 0:02:56]} 3. Nc3 {[%clk 0:02:59]}  Bg7 {[%clk 0:02:56]} 4. e4 {[%clk 0:03:00]}  d6 {[%clk 0:02:56]} 5. d4 {[%clk 0:02:59]}  O-O {[%clk 0:02:56]} 6. Be2 {[%clk 0:03:00]}  Nbd7 {[%clk 0:02:55]} 7. O-O {[%clk 0:03:00]}  e5 {[%clk 0:02:56]} 8. Be3 {[%clk 0:03:00]}  c6 {[%clk 0:02:50]} 9. Qc2 {[%clk 0:02:55]}  Qe7 {[%clk 0:02:44]} 10. Rfe1 {[%clk 0:02:48]}  a6 {[%clk 0:02:40]} 11. Rad1 {[%clk 0:02:46]}  Ng4 {[%clk 0:02:23]} 12. Bg5 {[%clk 0:02:45]}  f6 {[%clk 0:02:23]} 13. Bc1 {[%clk 0:02:43]}  Nh6 {[%clk 0:02:14]} 14. b3 {[%clk 0:02:38]}  Nf7 {[%clk 0:02:14]} 15. Ba3 {[%clk 0:02:37]}  b5 {[%clk 0:02:02]} 16. Bf1 {[%clk 0:02:11]}  Bb7 {[%clk 0:01:54]} 17. h3 {[%clk 0:02:10]}  Rfd8 {[%clk 0:01:52]} 18. dxe5 {[%clk 0:02:04]}  Ndxe5 {[%clk 0:01:36]} 19. Nxe5 {[%clk 0:01:51]}  fxe5 {[%clk 0:01:37]} 20. Be2 {[%clk 0:01:23]}  Bf8 {[%clk 0:01:31]} 21. Rd3 {[%clk 0:01:17]}  Ng5 {[%clk 0:01:27]} 22. Bg4 {[%clk 0:01:11]}  h5 {[%clk 0:01:23]} 23. h4 {[%clk 0:01:02]}  hxg4 {[%clk 0:01:06]} 24. hxg5 {[%clk 0:01:02]}  Qxg5 {[%clk 0:01:07]} 25. Rg3 {[%clk 0:01:00]}  Be7 {[%clk 0:00:52]} 26. Qe2 {[%clk 0:00:53]}  Bc8 {[%clk 0:00:49]} 27. Nd1 {[%clk 0:00:52]}  Be6 {[%clk 0:00:45]} 28. Ne3 {[%clk 0:00:52]}  bxc4 {[%clk 0:00:43]} 29. bxc4 {[%clk 0:00:51]}  Kg7 {[%clk 0:00:23]} 30. Nxg4 {[%clk 0:00:49]}  Qh4 {[%clk 0:00:16]} 31. Ne3 {[%clk 0:00:10]}  Rh8 {[%clk 0:00:14]} 32. Rh3 {[%clk 0:00:08]}  Bxh3 {[%clk 0:00:14]} 33. gxh3 {[%clk 0:00:09]}  Qxh3 {[%clk 0:00:14]} 34. f3 {[%clk 0:00:06]}  Qh1+ {[%clk 0:00:13]} 35. Kf2 {[%clk 0:00:07]}  Rh2+ {[%clk 0:00:13]} 36. Kg3 {[%clk 0:00:07]}  Bh4+ {[%clk 0:00:11]} 37. Kg4 {[%clk 0:00:07]}  Qxe1 {[%clk 0:00:04]} 38. Qxe1 {[%clk 0:00:06]}  Bxe1 {[%clk 0:00:04]} 39. Bxd6 {[%clk 0:00:06]}  Rh4+ {[%clk 0:00:04]} 40. Kg5 {[%clk 0:00:06]}  Rh5+ {[%clk 0:00:04]} 41. Kg4 {[%clk 0:00:06]}  Rh4+ {[%clk 0:00:04]} 42. Kg5 {[%clk 0:00:06]}  Kf7 {[%clk 0:00:04]} 43. Bxe5 {[%clk 0:00:06]}  Rh5+ {[%clk 0:00:04]} 44. Kf4 {[%clk 0:00:07]}  Bg3+ {[%clk 0:00:03]} 45. Kxg3 {[%clk 0:00:07]}  Rxe5 {[%clk 0:00:04]} 46. Ng4 {[%clk 0:00:07]}  Ra5 {[%clk 0:00:04]} 47. Kf4 {[%clk 0:00:07]}  Rxa2 {[%clk 0:00:05]} 48. Ne5+ {[%clk 0:00:08]}  Kg7 {[%clk 0:00:06]} 49. Nxc6 {[%clk 0:00:09]}  a5 {[%clk 0:00:07]} 50. Nd4 {[%clk 0:00:08]}  a4 {[%clk 0:00:07]} 51. Ne6+ {[%clk 0:00:09]}  Kf6 {[%clk 0:00:07]} 52. Ng5 {[%clk 0:00:09]}  a3 {[%clk 0:00:07]} 53. e5+ {[%clk 0:00:09]}  Kg7 {[%clk 0:00:07]} 54. c5 {[%clk 0:00:09]}  Rc2 {[%clk 0:00:07]} 55. Ne4 {[%clk 0:00:09]}  a2 {[%clk 0:00:07]} 56. e6 {[%clk 0:00:10]}  a1=Q {[%clk 0:00:07]} 57. e7 {[%clk 0:00:09]}  Qc1+ {[%clk 0:00:08]} 58. Ke5 {[%clk 0:00:09]}  Rxc5+ {[%clk 0:00:07]} 59. Ke6 {[%clk 0:00:08]}  Rc6+ {[%clk 0:00:06]} 60. Nd6 {[%clk 0:00:09]}  Rxd6+ {[%clk 0:00:06]} 61. Kxd6 {[%clk 0:00:09]}  Kf7 {[%clk 0:00:07]} 62. f4 {[%clk 0:00:09]}  Re8 {[%clk 0:00:07]} 63. f5 {[%clk 0:00:09]}  gxf5 {[%clk 0:00:07]} 64. Kd7 {[%clk 0:00:09]}  Rxe7+ {[%clk 0:00:07]} 65. Kd6 {[%clk 0:00:09]}  Qc7+ {[%clk 0:00:08]} 66. Kd5 {[%clk 0:00:09]}  Re5+ {[%clk 0:00:08]} 67. Kd4 {[%clk 0:00:09]}  Qc5+ {[%clk 0:00:09]} 68. Kd3 {[%clk 0:00:10]}  Re3+ {[%clk 0:00:10]} 69. Kd2 {[%clk 0:00:10]}  Qc3+ {[%clk 0:00:11]} 70. Kd1 {[%clk 0:00:11]}  Re1# {[%clk 0:00:12]} 0-1


[Site "https://www.chess.com"]

[Event "Titled Tuesday Blitz June 29 2021"]
[White "SilviusTiberius"]
[Black "PavelShkapenko"]
[WhiteElo "2521"]
[BlackElo "2678"]
[Result "1/2-1/2"]
[Round "11"]
[TimeControl "180+1"]
[Date "2021.06.29"]
[WhiteClock "0:00:19"]
[BlackClock "0:00:58"]

1. e4 {[%clk 0:03:00]}  e5 {[%clk 0:02:59]} 2. Nf3 {[%clk 0:03:00]}  Nc6 {[%clk 0:03:00]} 3. Bb5 {[%clk 0:03:01]}  Bc5 {[%clk 0:03:00]} 4. c3 {[%clk 0:02:59]}  f5 {[%clk 0:02:59]} 5. d4 {[%clk 0:02:57]}  fxe4 {[%clk 0:02:59]} 6. Bxc6 {[%clk 0:02:58]}  dxc6 {[%clk 0:02:58]} 7. Nxe5 {[%clk 0:02:58]}  Qd5 {[%clk 0:02:58]} 8. O-O {[%clk 0:02:54]}  Nf6 {[%clk 0:02:52]} 9. Bg5 {[%clk 0:02:38]}  O-O {[%clk 0:02:48]} 10. Nd2 {[%clk 0:02:31]}  Bd6 {[%clk 0:02:48]} 11. Ndc4 {[%clk 0:02:23]}  Ng4 {[%clk 0:02:31]} 12. Nxd6 {[%clk 0:02:05]}  cxd6 {[%clk 0:02:30]} 13. c4 {[%clk 0:01:27]}  Qe6 {[%clk 0:02:30]} 14. Nxg4 {[%clk 0:01:27]}  Qxg4 {[%clk 0:02:30]} 15. Qxg4 {[%clk 0:01:26]}  Bxg4 {[%clk 0:02:30]} 16. Be7 {[%clk 0:01:27]}  Rfe8 {[%clk 0:02:30]} 17. Bxd6 {[%clk 0:01:27]}  Be2 {[%clk 0:02:31]} 18. Rfc1 {[%clk 0:01:26]}  Rad8 {[%clk 0:02:24]} 19. c5 {[%clk 0:01:24]}  Rd7 {[%clk 0:02:02]} 20. Rc3 {[%clk 0:01:24]}  Bd3 {[%clk 0:01:42]} 21. Re1 {[%clk 0:01:24]}  Kf7 {[%clk 0:01:40]} 22. Re3 {[%clk 0:01:19]}  Re6 {[%clk 0:01:39]} 23. f3 {[%clk 0:01:16]}  Bb1 {[%clk 0:01:38]} 24. Kf2 {[%clk 0:01:04]}  exf3 {[%clk 0:01:35]} 25. Rxf3+ {[%clk 0:01:04]}  Rf6 {[%clk 0:01:33]} 26. Rxf6+ {[%clk 0:00:47]}  gxf6 {[%clk 0:01:34]} 27. a3 {[%clk 0:00:45]}  Be4 {[%clk 0:01:31]} 28. Re3 {[%clk 0:00:42]}  Bd5 {[%clk 0:01:25]} 29. Kg3 {[%clk 0:00:41]}  Kg6 {[%clk 0:01:25]} 30. Kf4 {[%clk 0:00:41]}  b5 {[%clk 0:01:16]} 31. g4 {[%clk 0:00:40]}  a5 {[%clk 0:01:16]} 32. Re8 {[%clk 0:00:40]}  a4 {[%clk 0:01:13]} 33. h4 {[%clk 0:00:39]}  Kf7 {[%clk 0:01:12]} 34. Rh8 {[%clk 0:00:38]}  Kg7 {[%clk 0:01:12]} 35. Rc8 {[%clk 0:00:28]}  Rb7 {[%clk 0:01:09]} 36. Bf8+ {[%clk 0:00:25]}  Kf7 {[%clk 0:01:08]} 37. h5 {[%clk 0:00:21]}  b4 {[%clk 0:01:07]} 38. Bd6 {[%clk 0:00:18]}  bxa3 {[%clk 0:01:06]} 39. bxa3 {[%clk 0:00:19]}  Rb3 {[%clk 0:01:03]} 40. Rc7+ {[%clk 0:00:19]}  Kg8 {[%clk 0:01:00]} 41. Rc8+ {[%clk 0:00:18]}  Kf7 {[%clk 0:00:58]} 42. Rc7+ {[%clk 0:00:18]}  Kg8 {[%clk 0:00:58]} 43. Rc8+ {[%clk 0:00:19]}  Kf7 {[%clk 0:00:58]} 1/2-1/2


[Site "https://www.chess.com"]

[Event "Titled Tuesday Blitz June 29 2021"]
[White "Spriteball"]
[Black "Koalaskakistis"]
[WhiteElo "2395"]
[BlackElo "2567"]
[Result "1-0"]
[Round "11"]
[TimeControl "180+1"]
[Date "2021.06.29"]
[WhiteClock "0:01:33"]
[BlackClock "0:01:22"]

1. d4 {[%clk 0:03:00]}  f5 {[%clk 0:02:59]} 2. Nc3 {[%clk 0:02:58]}  Nf6 {[%clk 0:02:59]} 3. Bg5 {[%clk 0:02:58]}  d5 {[%clk 0:02:59]} 4. Nf3 {[%clk 0:02:55]}  e6 {[%clk 0:02:58]} 5. e3 {[%clk 0:02:55]}  a6 {[%clk 0:02:57]} 6. Be2 {[%clk 0:02:50]}  c5 {[%clk 0:02:57]} 7. O-O {[%clk 0:02:49]}  Nc6 {[%clk 0:02:58]} 8. Ne5 {[%clk 0:02:35]}  Be7 {[%clk 0:02:44]} 9. Re1 {[%clk 0:02:20]}  O-O {[%clk 0:02:41]} 10. Bxf6 {[%clk 0:02:19]}  Bxf6 {[%clk 0:02:26]} 11. Nxc6 {[%clk 0:02:19]}  bxc6 {[%clk 0:02:24]} 12. dxc5 {[%clk 0:02:15]}  Qa5 {[%clk 0:02:20]} 13. a3 {[%clk 0:02:07]}  Qxc5 {[%clk 0:02:12]} 14. Na4 {[%clk 0:02:05]}  Qa5 {[%clk 0:02:07]} 15. c4 {[%clk 0:02:04]}  Rb8 {[%clk 0:01:57]} 16. b4 {[%clk 0:01:57]}  Qc7 {[%clk 0:01:51]} 17. Rc1 {[%clk 0:01:57]}  Qe5 {[%clk 0:01:47]} 18. Nc5 {[%clk 0:01:48]}  Qb2 {[%clk 0:01:44]} 19. Qa4 {[%clk 0:01:40]}  f4 {[%clk 0:01:28]} 20. Nd3 {[%clk 0:01:34]}  Qe5 {[%clk 0:01:22]} 21. Nxe5 {[%clk 0:01:33]} 1-0


[Site "https://www.chess.com"]

[Event "Titled Tuesday Blitz June 29 2021"]
[White "Tayson_7"]
[Black "VladDobrov"]
[WhiteElo "2656"]
[BlackElo "2794"]
[Result "0-1"]
[Round "11"]
[TimeControl "180+1"]
[Date "2021.06.29"]
[WhiteClock "0:00:02"]
[BlackClock "0:00:13"]

1. e4 {[%clk 0:03:00]}  c5 {[%clk 0:02:59]} 2. Nc3 {[%clk 0:03:00]}  Nc6 {[%clk 0:02:59]} 3. Nge2 {[%clk 0:03:00]}  e6 {[%clk 0:02:55]} 4. g3 {[%clk 0:02:59]}  d5 {[%clk 0:02:55]} 5. exd5 {[%clk 0:02:59]}  exd5 {[%clk 0:02:56]} 6. d4 {[%clk 0:02:58]}  Bg4 {[%clk 0:02:50]} 7. Be3 {[%clk 0:02:54]}  Bf3 {[%clk 0:02:47]} 8. Rg1 {[%clk 0:02:54]}  c4 {[%clk 0:02:20]} 9. Qd2 {[%clk 0:02:52]}  Bb4 {[%clk 0:01:49]} 10. a3 {[%clk 0:02:49]}  Ba5 {[%clk 0:01:49]} 11. O-O-O {[%clk 0:02:48]}  Nge7 {[%clk 0:01:48]} 12. Re1 {[%clk 0:02:46]}  O-O {[%clk 0:01:47]} 13. g4 {[%clk 0:02:46]}  b5 {[%clk 0:01:47]} 14. Rg3 {[%clk 0:02:43]}  Bxe2 {[%clk 0:01:40]} 15. Qxe2 {[%clk 0:02:41]}  b4 {[%clk 0:01:41]} 16. axb4 {[%clk 0:02:38]}  Bxb4 {[%clk 0:01:42]} 17. f4 {[%clk 0:02:31]}  Qa5 {[%clk 0:01:40]} 18. Kd2 {[%clk 0:02:22]}  Rab8 {[%clk 0:01:29]} 19. Qd1 {[%clk 0:02:19]}  Nxd4 {[%clk 0:01:13]} 20. Bxd4 {[%clk 0:02:17]}  Nc6 {[%clk 0:01:14]} 21. Bf2 {[%clk 0:01:47]}  d4 {[%clk 0:01:13]} 22. Bxc4 {[%clk 0:01:45]}  dxc3+ {[%clk 0:01:13]} 23. bxc3 {[%clk 0:01:45]}  Bxc3+ {[%clk 0:01:13]} 24. Rxc3 {[%clk 0:01:40]}  Rfd8+ {[%clk 0:01:10]} 25. Bd3 {[%clk 0:01:39]}  Rxd3+ {[%clk 0:01:03]} 26. cxd3 {[%clk 0:01:13]}  Rb2+ {[%clk 0:01:02]} 27. Ke3 {[%clk 0:01:11]}  Qxc3 {[%clk 0:00:57]} 28. Kf3 {[%clk 0:01:07]}  h5 {[%clk 0:00:44]} 29. Re2 {[%clk 0:00:54]}  hxg4+ {[%clk 0:00:42]} 30. Kxg4 {[%clk 0:00:54]}  Rb5 {[%clk 0:00:38]} 31. Kg3 {[%clk 0:00:50]}  Rd5 {[%clk 0:00:30]} 32. Re3 {[%clk 0:00:47]}  Nd4 {[%clk 0:00:28]} 33. Kg2 {[%clk 0:00:42]}  Qc6 {[%clk 0:00:25]} 34. Kf1 {[%clk 0:00:38]}  Rd8 {[%clk 0:00:24]} 35. Re4 {[%clk 0:00:32]}  Nf5 {[%clk 0:00:22]} 36. Qe2 {[%clk 0:00:30]}  g6 {[%clk 0:00:21]} 37. Bxa7 {[%clk 0:00:29]}  Ra8 {[%clk 0:00:15]} 38. Bf2 {[%clk 0:00:26]}  Ra1+ {[%clk 0:00:15]} 39. Be1 {[%clk 0:00:26]}  Kg7 {[%clk 0:00:15]} 40. Qb2+ {[%clk 0:00:24]}  Qf6 {[%clk 0:00:14]} 41. Qxf6+ {[%clk 0:00:24]}  Kxf6 {[%clk 0:00:15]} 42. Kf2 {[%clk 0:00:23]}  Ra2+ {[%clk 0:00:15]} 43. Re2 {[%clk 0:00:23]}  Ra3 {[%clk 0:00:16]} 44. Rd2 {[%clk 0:00:19]}  Ke6 {[%clk 0:00:16]} 45. Kf1 {[%clk 0:00:17]}  Kd5 {[%clk 0:00:17]} 46. Bf2 {[%clk 0:00:16]}  Ra4 {[%clk 0:00:17]} 47. Bg3 {[%clk 0:00:16]}  Kd4 {[%clk 0:00:15]} 48. Ke2 {[%clk 0:00:15]}  Kc3 {[%clk 0:00:15]} 49. Be1 {[%clk 0:00:08]}  Rxf4 {[%clk 0:00:15]} 50. Ra2+ {[%clk 0:00:07]}  Kb3 {[%clk 0:00:15]} 51. Ra7 {[%clk 0:00:07]}  Nd4+ {[%clk 0:00:12]} 52. Ke3 {[%clk 0:00:07]}  Ne6 {[%clk 0:00:13]} 53. Rb7+ {[%clk 0:00:06]}  Kc2 {[%clk 0:00:14]} 54. Re7 {[%clk 0:00:02]}  Rf5 {[%clk 0:00:13]} 0-1


[Site "https://www.chess.com"]